Cogmind - Beta 15 @@@ ROGUE MODE // 2025.09.02 @ 21:28:44 Player: TenMicu Result: Destroyed by D-53 Grenadier with Mini Grenade Launcher Performance ------------- Evolutions (0) 0 Regions Visited (2) 400 Robots Destroyed (6) 30 Value Destroyed (156) 156 Prototype IDs (0) 0 Alien Tech Used (0) 0 Bonus (0) 0 TOTAL SCORE: 586 Bonus ------- None Cogmind --------- Core Integrity 0/250 Matter 290/300 Energy 100/100 System Corruption 0% Temperature Cool (0) Movement Treading (160) Location -10/Mines Parts ------- > --- POWER (1) -------- (None) > --- PROPULSION (2) --- Light Treads Light Treads > --- UTILITY (2) ------ Small Storage Unit > --- WEAPON (2) ------- Hammer > --- INVENTORY (8) ---- Light Treads Light Treads Beam Cannon Peak State ------------ > --- POWER ------------ Light Ion Engine > --- PROPULSION ------- Light Treads Light Treads > --- UTILITY ---------- Small Storage Unit Small Matter Pod > --- WEAPON ----------- Beam Cannon Hammer > --- INVENTORY -------- Aluminum Leg Small Laser [Rating: 7] Favorites ----------- Power Light Ion Engine Engine Light Ion Engine Propulsion Light Treads Treads Light Treads Leg Aluminum Leg Utility Small Storage Unit Device Terrain Scanner Storage Small Storage Unit Weapon Hammer Energy Cannon Beam Cannon Ballistic Gun Light Assault Rifle Impact Weapon Hammer Build | -11 -10 -10 ------- Run | Yrd Mat Min Slots Evolved . | . . . Power . | . . . Propulsion . | . . . Utility . | . . . Weapon . | . . . Parts Attached 14 | 5 7 2 Power 1 | 1 . . Engine 1 | 1 . . Core . | . . . Reactor . | . . . Propulsion 7 | 2 3 2 Treads 4 | . 2 2 Leg 3 | 2 1 . Wheel . | . . . Hover . | . . . Flight . | . . . Utility 3 | 1 2 . Device 1 | . 1 . Storage 2 | 1 1 . Processor . | . . . Hackware . | . . . Protection . | . . . Artifact . | . . . Weapon 3 | 1 2 . Energy Gun . | . . . Energy Cannon 1 | . 1 . Ballistic Gun 1 | 1 . . Ballistic Cannon . | . . . Launcher . | . . . Special Weapon . | . . . Impact Weapon 1 | . 1 . Slashing Weapon . | . . . Piercing Weapon . | . . . Special Melee Weapon . | . . . Unidentified Prototypes . | . . . Parts Lost 5 | . 3 2 Power 1 | . . 1 Propulsion 2 | . 2 . Utility 1 | . . 1 Weapon 1 | . 1 . Highest Loss Streak 3 | . 3 2 To Critical Strikes . | . . . Average Backups 3 | 1 4 3 Power . | . . . Propulsion 2 | . 3 2 Utility . | . . . Weapon 1 | . 1 1 Tool/Special . | . . . Unused Backups 5 | . 2 3 Power . | . . . Propulsion 2 | . . 2 Utility 1 | . 1 . Weapon 2 | . 1 1 Tool/Special . | . . . Average Slot Usage (%) 87 | . 88 73 Engine 13 | . 14 9 Treads 14 | . 13 25 Leg 12 | . 13 . Device 2 | . 2 9 Storage 18 | . 19 14 Energy Cannon 8 | . 8 . Ballistic Gun 5 | . 5 . Impact Weapon 10 | . 10 14 Peak Build Rating 7 | 5 7 6 Average Rating 5 | 3 6 5 On Entrance 3 | . 5 4 Naked Turns . | . . . Heaviest Build 14 | 9 14 11 Greatest Support 40 | 20 40 40 Greatest Overweight (x) 3 | . 3 . Average Overweight (x) . | . . . Largest Inventory Capacity 8 | 8 8 8 Average Capacity 7 | 7 8 8 Most Carried 6 | 3 6 4 Average Carried 4 | 1 4 3 Final Capacity 8 | 8 8 8 Final Carried 5 | 3 5 3 Class Distribution -------------------- 100% | Mutant Dominant Class ---------------- Mutant | -10/Materials Mutant | -10/Mines Resources | -11 -10 -10 ----------- Run | Yrd Mat Min Matter Collected 330 | 182 148 . Remotely . | . . . Salvage Created 160 | . 160 . Parts 3 | . 3 . Haulers Intercepted . | . . . Recyclers Shooed 1 | . 1 . Parts Field Recycled . | . . . Retrieved Matter . | . . . Parts Self-Destructed . | . . . Prevented . | . . . Kills | -11 -10 -10 ------- Run | Yrd Mat Min Combat Hostiles Destroyed 6 | . 6 . Melee 2 | . 2 . Guns 1 | . 1 . Classes Destroyed 2 | . 2 . Swarmer 2 | . 2 . Grunt 4 | . 4 . Best Kill Streak 1 | . 1 . Combat Bots Only 1 | . 1 . Max Kills in Single Turn 1 | . 1 . Gunslinging . | . . . Exploded . | . . . Melee 1 | . 1 . Uniques/NPCs Destroyed . | . . . Combat | -11 -10 -10 -------- Run | Yrd Mat Min Hostile Shots Fired 103 | . 87 16 Missed 22 | . 18 4 Hits 81 | . 69 12 Melee 3 | . . 3 Projectile 78 | . 69 9 AOE 7 | . . 7 Critical Strikes 2 | . 2 . Damage Taken 1239 | . 871 368 Core 260 | . 181 79 Absorbed by Shields . | . . . Core Remaining (%) 100 | 100 . . Volleys Fired 19 | . 19 . Largest 1 | . 1 . Hottest 20 | . 20 . Shots Fired 19 | . 19 . Gun 19 | . 19 . Cannon . | . . . Launcher . | . . . Special . | . . . Kinetic 19 | . 19 . Thermal . | . . . Explosive . | . . . Electromagnetic . | . . . Robot Hit Streak 8 | . 8 . Robot Miss Streak 4 | . 4 . Penetration Max . | . . . Secondary Targets . | . . . Shots Hit Robots 42 | . 42 . Core Hits 4 | . 4 . Critical Kills . | . . . Critical Parts Destroyed 4 | . 4 . Critical Strikes 4 | . 4 . Smash 4 | . 4 . Melee Attacks 46 | . 45 1 Impact 46 | . 45 1 Slashing . | . . . Piercing . | . . . Sneak Attacks 1 | . 1 . Combat Hostiles . | . . . Follow-up Attacks . | . . . Damage Inflicted 941 | . 941 . Guns 99 | . 99 . Cannons . | . . . Explosions . | . . . Melee 842 | . 842 . Ramming . | . . . Kinetic 99 | . 99 . Thermal . | . . . Explosive . | . . . Electromagnetic . | . . . Impact 842 | . 842 . Slashing . | . . . Piercing . | . . . Highest Corruption . | . . . Average Corruption . | . . . Corruption Purged . | . . . Corruption Blocked . | . . . Overload Shots . | . . . Overflow Damage 133 | . 133 . Projectiles . | . . . Explosions . | . . . Melee 133 | . 133 . Knockbacks 5 | . 5 . Impact 5 | . 5 . Kinetic . | . . . Secondary . | . . . Self-Inflicted Damage . | . . . Shots . | . . . Rammed . | . . . Targets Rammed 1 | . 1 . Kicked 1 | . 1 . Crushed . | . . . Highest Temperature 7 | . 7 . Average Temperature 6 | . 6 . Received Heat Transfer 369 | . 369 . Siege Activations . | . . . Martial Activations . | . . . Shielding Activations . | . . . Robots Disrupted . | . . . Combat Hostiles . | . . . Robots Corrupted 3 | . 3 . Combat Hostiles 3 | . 3 . Parts Fried 3 | . 3 . Impact Corruptions 8 | . 8 . Robots Melted . | . . . Combat Hostiles . | . . . Parts Melted . | . . . Heat Transferred . | . . . Parts Sabotaged . | . . . Parts Stolen . | . . . Parts Stripped . | . . . Power Chain Reactions . | . . . Alert | -11 -10 -10 ------- Run | Yrd Mat Min Maximum Alert Level 1 | . 1 . Low Security (%) 94 | 100 93 100 Level 1 5 | . 6 . Level 2 . | . . . Level 3 . | . . . Level 4 . | . . . Level 5 . | . . . High Security . | . . . Max Security . | . . . Peak Influence 220 | . 220 67 Initial 67 | . . 67 Average 36 | . 39 52 Influence Increases 361 | . 361 . Destroy 0b10 Robot/C 120 | . 120 . Destroy Leader 30 | . 30 . Destroy Structure 1 | . 1 . Lose Combat Pursuer 210 | . 210 . Influence Decreases 334 | . 187 147 Entered New Map 107 | . . 107 Time Decay 177 | . 157 20 Lost Part 50 | . 30 20 Squads Dispatched 1 | . 1 . Investigation 1 | . 1 . Extermination . | . . . Reinforcement . | . . . Assault . | . . . Garrison . | . . . Intercept . | . . . Searches Triggered . | . . . Construction Impeded . | . . . Haulers Reinforced . | . . . Active Scanning Responses . | . . . Cargo Convoy Interrupts . | . . . Stealth | -11 -10 -10 --------- Run | Yrd Mat Min Distress Signals 1 | . 1 . Communications Jammed . | . . . Distress Signals . | . . . Times Spotted 44 | . 24 20 Peak Tracking Total 18 | . 5 18 Tactical Retreats 7 | . 7 . Traps | -11 -10 -10 ------- Run | Yrd Mat Min Traps Triggered 1 | . 1 . Indirectly . | . . . Trap Hack Attempts . | . . . Triggered . | . . . Disarmed . | . . . Reprogrammed . | . . . Reused . | . . . Traps Extracted . | . . . Installed . | . . . Triggered . | . . . Machines | -11 -10 -10 ---------- Run | Yrd Mat Min Machines Disabled . | . . . Max in Single Turn . | . . . Machines Repaired . | . . . Machines Dismantled . | . . . Machines Sabotaged . | . . . Overloaded Fab Kills . | . . . Hacking | -11 -10 -10 --------- Run | Yrd Mat Min Machines Accessed . | . . . Terminals . | . . . Fabricators . | . . . Repair Stations . | . . . Recycling Units . | . . . Scanalyzers . | . . . Garrison Access . | . . . Total Hacks . | . . . Successful . | . . . Failed . | . . . Catastrophic . | . . . Database Lockouts . | . . . Manual . | . . . Terminals . | . . . Fabricators . | . . . Repair Stations . | . . . Recycling Units . | . . . Scanalyzers . | . . . Garrison Access . | . . . Terminal Hacks . | . . . Fabricator Hacks . | . . . Repair Station Hacks . | . . . Recycling Unit Hacks . | . . . Scanalyzer . | . . . Garrison Access Hacks . | . . . Unauthorized Hacks . | . . . Terminals . | . . . Fabricators . | . . . Repair Stations . | . . . Recycling Units . | . . . Scanalyzers . | . . . Garrison Access . | . . . Data Cores Recovered . | . . . Used . | . . . Hacking Detections . | . . . Full Trace Events . | . . . Feedback Events . | . . . Feedback Blocked . | . . . Robot Schematics Acquired . | . . . Robots Built . | . . . Authchips . | . . . Time . | . . . Total Robot Build Rating . | . . . Part Schematics Acquired . | . . . Parts Built . | . . . Authchips . | . . . Time . | . . . Total Part Build Rating . | . . . Parts Repaired . | . . . Time . | . . . Parts Recycled . | . . . Recycled Matter . | . . . Retrieved Matter . | . . . Retrieved Components . | . . . Parts Scanalyzed . | . . . Part Schematics Acquired . | . . . Parts Damaged . | . . . Bothacking | -11 -10 -10 ------------ Run | Yrd Mat Min Used RIF Installer . | . . . Robots Hacked . | . . . Non-combat . | . . . Combat . | . . . Robot Hacks Applied . | . . . Relay Couplers Released . | . . . Fabnet Peak Effective % . | . . . Robots Rewired . | . . . Allies Hacked . | . . . Hacks Repelled . | . . . Allies | -11 -10 -10 -------- Run | Yrd Mat Min Total Allies . | . . . Largest Group . | . . . Highest-Rated Group . | . . . Highest-Rated Ally . | . . . Total Orders . | . . . Ally Attacks . | . . . Total Damage . | . . . Kills . | . . . Allies Corrupted . | . . . Allies Melted . | . . . Intel | -11 -10 -10 ------- Run | Yrd Mat Min Active Infowar (turns) 113 | . 86 27 Terrain 113 | . 86 27 Robot Analysis Total . | . . . Derelict Logs Recovered . | . . . Drone Launches . | . . . Drone Recoveries . | . . . Exploration | -11 -10 -10 ------------- Run | Yrd Mat Min Turns Passed 620 | 55 521 44 Spaces Moved 296 | 39 233 24 Core 11 | 5 6 . Treads 115 | . 91 24 Legs 170 | 34 136 . Wheels . | . . . Hover . | . . . Flight . | . . . Fastest Speed 50 | 50 120 160 Average Speed 135 | 111 137 160 Slowest Speed 200 | 120 200 160 Overloaded Moves . | . . . Propulsion Burnouts . | . . . Robots Hopped . | . . . Potential Cave-ins . | . . . Cave-ins Triggered . | . . . Exploration Rate (%) 13 | 4 27 10 Regions Visited 2 Branch Regions 1 Pre-discovered Areas . | . . . Known Exits Taken . | . . . Unknown Exits Taken 2 | 1 1 . Scrap Searched . | . . . Spaces Dug 1 | . 1 . Terrain Destroyed 1 | . 1 . Melee 1 | . 1 . Projectile . | . . . AOE . | . . . Terrain Rammed . | . . . Walls Destroyed . | . . . Machines Disabled . | . . . Actions | -11 -10 -10 --------- Run | Yrd Mat Min Total 419 | 50 341 28 Wait 19 | . 18 1 Move 294 | 38 232 24 Hop . | . . . Pick Up 18 | 7 11 . Fast Attach 1 | 1 . . Attach 9 | 4 3 2 Detach . | . . . Swap 5 | . 5 . Drop 7 | . 7 . Fire 19 | . 19 . Melee 46 | . 45 1 Ram . | . . . Kick 1 | . 1 . Crush . | . . . Escape Stasis . | . . . Rewire . | . . . Trap . | . . . Miscellaneous . | . . . Route ------- -11/Scrapyard -10/Materials (discovered 2 exits: [*Mat] / [*Min]) -10/Mines History --------- Turn | Location | Event 9 | -11/Scrapyard | Discovered new exit (range 15) 56 | -11/Scrapyard | Entered Materials 328 | -10/Materials | Build established: Mutant 518 | -10/Materials | Discovered new exit (range 14) 518 | -10/Materials | Discovered new exit (range 6) 567 | -10/Materials | Core integrity fell below 50% 577 | -10/Materials | Entered Mines 578 | -10/Mines | Assembled infested the area 583 | -10/Mines | Assisted by a Guerilla fighting off Assembled 597 | -10/Mines | Lost 3 parts (2n1w) 602 | -10/Mines | Core integrity fell below 20% 621 | -10/Mines | Destroyed by D-53 Grenadier with Mini Grenade Launcher Last Messages --------------- 00590_ U3-Y30(h): "I'll hold them off! Go on ahead or try to find another way!" 00592_ HV Slug penetrates as-93612. 00592_ as-93612 suffers critical hit (Destroy). 00592_ as-93612 destroyed. 00598_ HV Slug penetrates as-15021. 00598_ as-15021 suffers critical hit (Destroy). 00600_ U3-Y30(h) suffers critical hit (Destroy). 00600_ U3-Y30(h) destroyed. 00603_ as-15021 destroyed. 00603_ as-83920 destroyed. 00604_ Terrain Scanner destroyed. 00605_ Lgt. Ion Engine destroyed. 00612_ The unstable cave ceiling collapses. 00612_ as-06268 destroyed. 00612_ as-18169 destroyed. 00612_ as-02305 destroyed. 00614_ as-27389 destroyed. 00615_ as-15102 destroyed. 00619_ The unstable cave ceiling collapses. Map ----- +----------------------------------------------------+ | ?????????????????????????????????????????????????? | | ?????????????????????????????????????????????????? | | ?????????????????????????????????????????????????? | | ?????????????????????????????????????????????????? | | ?????????????????????????????????????????????????? | | ?????????????????????????????????????????????????? | | ?????????????????????????????????????????????????? | | ?????????????????????????????????????????????????? | | ?????????????????????????????????????????????????? | | ?????????????????????????????????????????????????? | | ?????????????????????????????????????????????????? | | ?????????????????????????????????????????????????? | | ????????????????????????????????? ???????????????? | | ???????????????????????????????? ????????????????? | | ????????????????????##??????????? ##????????????? | | ???????????????????????###??? ?? ???????????? | | ???????????????????????# ????? #??????????? | | ???????????????????????# #????# #??????????? | | ??????????????????#????# #????? #??????????? | | ?????????????????????### ###??? % #??????????? | | ?????????????#??????## ###? < #??????????? | | ???????????## ??#?# ## ##?????????? | | ???????????# ### #?????????? | | ??????????# # # ### ?????? | | ????????? d %" "#???? | | ?????????? ## ### # @ d # #????????? | | ?????????????#?????# # #?????????? | | ???????????????????# ?# # #??????????? | | ???????????????????#??# #??????????????? | | ??????????????????????# # #??????????????? | | ????????????????????? ## ##????????????????? | | ???????????????#???????### ##????? ???????????? | | ?????????????????????????######??????????????????? | | ?????????????????????????????????????????????????? | | ?????????????????????????????????????????????????? | | ?????????????????????????????????????????????????? | | ?????????????????????????????????????????????????? | | ?????????????????????????????????????????????????? | | ?????????????????????????????????????????????????? | | ?????????????????????????????????????????????????? | | ?????????????????????????????????????????????????? | | ?????????????????????????????????????????????????? | | ?????????????????????????????????????????????????? | | ?????????????????????????????????????????????????? | | ?????????????????????????????????????????????????? | | | | | | | | | | | +----------------------------------------------------+ Best States ------------- Heat Dissipation 25 Energy Generation 10 Energy Capacity 125 Matter Stores 300 Matter Capacity 350 Sight Range 16 Terrain Scan Range 14 Terrain Scan Density 10 Evasion (%) 55 Recoil Reduction 2 Item Schematics ----------------- None Robot Schematics ------------------ None Fabricated ------------ Nothing Repaired ---------- Nothing Alien Tech Used ----------------- None Achievements -------------- None Challenges ------------ None Game ------ Seed CoilMultinovaRecalibrator Manual? 0 Play Time 00:10:02 Cumulative 7.3 hours Start 2025.06.04 @ 15:46:18 End 2025.09.02 @ 21:28:44 Sessions 8 Manual Loads 0 Difficulty Rogue Special Mode None Game No. 8 Rogue 8 Adventurer 0 Explorer 0 Win Type - Total 0 Types 0/0/0/0/0/0/0/0/0/0 Lore% 4 Gallery% 16 Achievement% 14 Wizard Run 0 Options --------- Layout 1 ASCII 0 Keyboard 0 Movement Numpad Keybinds 0 Fullscreen 1 Font 24/Terminus Map View 50x35 Zoom Use 0% Tactical HUD 1 Map Filters NONE Filters NONE Steam 1 RUN: 9a3ae887-96ff-412f-92a5-75814c02ea12